Workbook

Sheet 01.07.2021 СВОД
D1: Приложение №2
D2: к постановлению администрации ЗАТО г. Радужный Владимирской области
D3: от 16.07.2021№ 867
A5: Сведения о фактической численности муниципальных служащих, работников казенных и бюджетных учреждений и расходы на их денежное содержание по состоянию на 01.07.2021 года
A7: №п/п | B7: Код раздела (подраздела) | C7: Наименование раздела (подраздела) расходов | D7: Фактическая численность на 01.07.2021 года (чел.) | E7: Годовой фонд оплаты труда с начислениями (тыс.руб.) | F7: Исполнено за отчетный период (тыс.руб.)
A8: 1 | B8: 2 | C8: 3 | D8: 4 | E8: 5 | F8: 6
A9: 1 | B9: 0100 | C9: Общегосударственные вопросы | D9: =D11+D12+D13+D14+D15 -> 205 | E9: =E11+E12+E13+E14+E15 -> 72607.24 | F9: =F11+F12+F13+F14+F15 -> 31734.48
C10: в том числе:
A11: 1.1 | B11: 0102 | C11: Функционирование высшего должностного лица субъекта Российской Федерации и муниципального образования | D11: 1 | E11: 1954.97 | F11: 838.73
A12: 1.2 | B12: 0103 | C12: Функционирование законодательных (представительных) органов государственной власти и представительных органов муниципальных образований | D12: 2 | E12: 2039.83 | F12: 845.93
A13: 1.3 | B13: 0104 | C13: Функционирование Правительства Российской Федерации, высших исполнительных органов государственной власти субъектов Российской Федерации, местных администраций | D13: 13 | E13: 8923.83 | F13: 3549.94
A14: 1.4 | B14: 0106 | C14: Обеспечение деятельности финансовых, налоговых и таможенных органов и органов финансового (финансово-бюджетного) надзора | D14: 10 | E14: 5298.53 | F14: 2227.11
A15: 1.5 | B15: 0113 | C15: Другие общегосударственные вопросы | D15: 179 | E15: 54390.08 | F15: 24272.77
A16: 2 | B16: 0300 | C16: Национальная безопасность и правоохранительная деятельность, всего, в том числе | D16: =D18 -> 5 | E16: =E18 -> 2393.6 | F16: =F18 -> 1020.47
C17: в том числе:
A18: 2.1 | B18: 0309 | C18: Защита населения и территории от чрезвычайных ситуаций природного и техногенного характера, гражданская оборона | D18: 5 | E18: 2393.6 | F18: 1020.47
A19: 3 | B19: 0400 | C19: Национальная экономика | D19: 42 | E19: 16905.45 | F19: 7490.28
A20: 3.1 | B20: 0409 | C20: Дорожное хозяйство (дорожные фонды) | D20: 42 | E20: 16905.45 | F20: 7490.28
A21: 4 | B21: 0500 | C21: Жилищно-коммунальное хозяйство | D21: =D23+D24 -> 59 | E21: =E23+E24 -> 24365.27 | F21: 10490.55
C22: в том числе:
A23: 4.1 | B23: 0503 | C23: Благоустройство | D23: 6 | E23: 2285.25 | F23: 868.34
A24: 4.2 | B24: 0505 | C24: Другие вопросы в области жилищно-коммунального хозяйства | D24: 53 | E24: 22080.02 | F24: 9622.21
A25: 5 | B25: 0700 | C25: Образование | D25: =D27+D28+D29+D30 -> 506 | E25: =E27+E28+E29+E30 -> 225135.82 | F25: =F27+F28+F29+F30 -> 133887.4
C26: в том числе:
A27: 5.1 | B27: 0701 | C27: Дошкольное образование | D27: 216 | E27: 85663.71 | F27: 53392.51
A28: 5.2 | B28: 0702 | C28: Общее образование | D28: 177 | E28: 93462.33 | F28: 57424
A29: 5.3 | B29: 0703 | C29: Дополнительное образование детей | D29: 87 | E29: =14034.03+18122.22+3431.56 -> 35587.81 | F29: =7821.99+10063.91+781.85 -> 18667.75
A30: 5.4 | B30: 0709 | C30: Другие вопросы в области образования | D30: 26 | E30: 10421.97 | F30: 4403.14
A31: 6 | B31: 0800 | C31: Культура, кинематография | D31: =D33+D34 -> 92 | E31: =E33+E34 -> 33513.31 | F31: =F33+F34 -> 16641.53
C32: в том числе:
A33: 6.1 | B33: 0801 | C33: Культура | D33: 52 | E33: 21523.6 | F33: 11142.77
A34: 6.2 | B34: 0804 | C34: Другие вопросы в области культуры, кинематографии | D34: 40 | E34: 11989.71 | F34: 5498.76
A35: 7 | B35: 1000 | C35: Социальная политика | D35: =D37 -> 2 | E35: =E37 -> 1030.43 | F35: 413.47
C36: в том числе:
A37: 7.1 | B37: 1006 | C37: Другие вопросы в области социальной политики | D37: 2 | E37: 1030.43 | F37: 210.87
A38: 8 | B38: 1100 | C38: Физическая культура и спорт | D38: =D40 -> 2 | E38: =E40 -> 752.59 | F38: =F40 -> 270.26
C39: в том числе:
A40: 8.1 | B40: 1103 | C40: Спорт высших достижений | D40: 2 | E40: 752.59 | F40: 270.26
C41: Всего: | D41: =D9+D16+D19+D21+D25+D31+D35+D38 -> 913 | E41: =E9+E16+E19+E21+E25+E31+E35+E38 -> 376703.71 | F41: =F9+F16+F19+F21+F25+F31+F35+F38 -> 201948.44
A44: И.о. начальника финансового управления администрации ЗАТО г. Радужный Владимирской области | E44: М.Л. Семенович
A47: Ю.И. Аксенова, 3-67-17
